[Event "Early-Titled-Tuesday-Blitz-October-24-2023"]
[Site "Chess.com"]
[Date "2023.10.24"]
[Round "2"]
[White "Noki102"]
[Black "Alexei_Gubajdullin"]
[Result "1-0"]
[WhiteElo "2409"]
[BlackElo "2733"]
[TimeControl "180+1"]
[EndTime "8:16:46 PDT"]
[Termination "Noki102 won by resignation"]

1. d4 {[%clk 0:03:00]} 1... Nf6 {[%clk 0:02:56.8]} 2. Nc3 {[%clk 0:02:57.8]}
2... g6 {[%clk 0:02:56.8]} 3. e4 {[%clk 0:02:57.7]} 3... d6 {[%clk 0:02:57]} 4.
f4 {[%clk 0:02:52.2]} 4... Bg7 {[%clk 0:02:56.9]} 5. Nf3 {[%clk 0:02:51.6]} 5...
O-O {[%clk 0:02:57]} 6. e5 {[%clk 0:02:42.9]} 6... Nfd7 {[%clk 0:02:56.4]} 7.
Bc4 {[%clk 0:02:40.2]} 7... Nb6 {[%clk 0:02:55.4]} 8. Bb3 {[%clk 0:02:40.2]}
8... a5 {[%clk 0:02:55.4]} 9. a4 {[%clk 0:02:39.2]} 9... Nc6 {[%clk 0:02:54.9]}
10. O-O {[%clk 0:02:18.2]} 10... dxe5 {[%clk 0:02:53.9]} 11. fxe5 {[%clk
0:02:15.5]} 11... Bg4 {[%clk 0:02:52.6]} 12. Be3 {[%clk 0:02:15.3]} 12... e6
{[%clk 0:02:50.2]} 13. Ne4 {[%clk 0:02:12.5]} 13... Nd5 {[%clk 0:02:48.1]} 14.
Bxd5 {[%clk 0:01:56.4]} 14... Qxd5 {[%clk 0:02:46.1]} 15. Nf6+ {[%clk
0:01:55.8]} 15... Bxf6 {[%clk 0:02:45.6]} 16. exf6 {[%clk 0:01:56.7]} 16... Rad8
{[%clk 0:02:28.9]} 17. c3 {[%clk 0:01:30.3]} 17... e5 {[%clk 0:02:27]} 18. dxe5
{[%clk 0:01:25.7]} 18... Qe4 {[%clk 0:02:25.4]} 19. Qe1 {[%clk 0:01:22.8]} 19...
Bxf3 {[%clk 0:02:25]} 20. Rxf3 {[%clk 0:01:22.6]} 20... Nxe5 {[%clk 0:02:24.7]}
21. Rf4 {[%clk 0:01:09.7]} 21... Qd3 {[%clk 0:02:24.3]} 22. Bd4 {[%clk
0:01:02.6]} 22... Nc6 {[%clk 0:02:01]} 23. Rd1 {[%clk 0:01:00.1]} 23... Rde8
{[%clk 0:01:50.7]} 24. Rxd3 {[%clk 0:00:48]} 24... Rxe1+ {[%clk 0:01:50.1]} 25.
Kf2 {[%clk 0:00:48.7]} 25... Rb1 {[%clk 0:01:46.9]} 26. Rd2 {[%clk 0:00:44]}
26... Re8 {[%clk 0:01:41]} 27. Bc5 {[%clk 0:00:32]} 27... g5 {[%clk 0:01:35.9]}
28. Rg4 {[%clk 0:00:25.5]} 28... h5 {[%clk 0:01:35.9]} 29. Rxg5+ {[%clk
0:00:24.8]} 29... Kh7 {[%clk 0:01:34.4]} 30. Be3 {[%clk 0:00:15.6]} 30... Ne5
{[%clk 0:01:30.4]} 31. Rxh5+ {[%clk 0:00:15.3]} 31... Kg6 {[%clk 0:01:29.1]} 32.
Rh6+ {[%clk 0:00:15.7]} 32... Kf5 {[%clk 0:01:29.3]} 33. h3 {[%clk 0:00:15.1]}
33... Rxb2 {[%clk 0:01:25.1]} 34. g4+ {[%clk 0:00:14.4]} 34... Ke6 {[%clk
0:01:24.7]} 35. Rxb2 {[%clk 0:00:09.7]} 35... Nd3+ {[%clk 0:01:24.7]} 36. Kf3
{[%clk 0:00:09.8]} 36... Nxb2 {[%clk 0:01:25]} 37. Bd4 {[%clk 0:00:06.3]} 37...
Nxa4 {[%clk 0:01:24.9]} 38. Rh5 {[%clk 0:00:06.3]} 38... c5 {[%clk 0:01:23.5]}
39. Bxc5 {[%clk 0:00:06.5]} 39... Kxf6 {[%clk 0:01:21.3]} 40. Bd4+ {[%clk
0:00:04.1]} 40... Kg6 {[%clk 0:01:21.5]} 41. Rxa5 {[%clk 0:00:04.8]} 41... Nb2
{[%clk 0:01:20.1]} 42. Rb5 {[%clk 0:00:04.4]} 42... Nc4 {[%clk 0:01:17.3]} 43.
Rxb7 {[%clk 0:00:04.7]} 43... Nd2+ {[%clk 0:01:17.6]} 44. Kg3 {[%clk 0:00:04.9]}
44... Re1 {[%clk 0:01:13.8]} 45. Rb6+ {[%clk 0:00:04.9]} 45... Kh7 {[%clk
0:01:14]} 46. h4 {[%clk 0:00:05.3]} 46... Ne4+ {[%clk 0:01:12.4]} 47. Kf4 {[%clk
0:00:05.3]} 47... Nd2 {[%clk 0:01:11]} 48. g5 {[%clk 0:00:05.6]} 48... Rf1+
{[%clk 0:01:10.9]} 49. Kg3 {[%clk 0:00:06]} 49... Ne4+ {[%clk 0:01:10.6]} 50.
Kg2 {[%clk 0:00:06.4]} 50... Rf4 {[%clk 0:01:10]} 51. Rh6+ {[%clk 0:00:06.6]}
1-0

[Event "Early-Titled-Tuesday-Blitz-October-24-2023"]
[Site "Chess.com"]
[Date "2023.10.24"]
[Round "2"]
[White "sari07"]
[Black "Fan_Of_Chucky"]
[Result "0-1"]
[WhiteElo "2259"]
[BlackElo "2507"]
[TimeControl "180+1"]
[EndTime "8:16:47 PDT"]
[Termination "Fan_Of_Chucky won on time"]

1. Nf3 {[%clk 0:03:00.9]} 1... c5 {[%clk 0:02:58.3]} 2. g3 {[%clk 0:03:00.5]}
2... Nf6 {[%clk 0:02:58.7]} 3. Bg2 {[%clk 0:03:01]} 3... d5 {[%clk 0:02:59]} 4.
O-O {[%clk 0:03:01.4]} 4... Nc6 {[%clk 0:02:38.8]} 5. c4 {[%clk 0:02:56.6]} 5...
e5 {[%clk 0:02:35.3]} 6. cxd5 {[%clk 0:02:52.3]} 6... Nxd5 {[%clk 0:02:36.2]} 7.
Nc3 {[%clk 0:02:52]} 7... Nc7 {[%clk 0:02:36]} 8. a3 {[%clk 0:01:58]} 8... Be7
{[%clk 0:02:28.6]} 9. b4 {[%clk 0:01:44.8]} 9... cxb4 {[%clk 0:02:25]} 10. axb4
{[%clk 0:01:45.7]} 10... Bxb4 {[%clk 0:02:23.1]} 11. Bb2 {[%clk 0:01:46]} 11...
O-O {[%clk 0:02:14.9]} 12. Ne4 {[%clk 0:01:17.5]} 12... f6 {[%clk 0:01:52.1]}
13. Qa4 {[%clk 0:01:09.1]} 13... Be6 {[%clk 0:01:39.4]} 14. Rfc1 {[%clk
0:01:07.6]} 14... a5 {[%clk 0:01:27.5]} 15. Nc5 {[%clk 0:00:44.8]} 15... Bxc5
{[%clk 0:01:21]} 16. Rxc5 {[%clk 0:00:45.7]} 16... Qd7 {[%clk 0:01:04.3]} 17.
Rac1 {[%clk 0:00:25.4]} 17... Kh8 {[%clk 0:00:53.3]} 18. Qh4 {[%clk 0:00:17.6]}
18... Bd5 {[%clk 0:00:46.8]} 19. Bh3 {[%clk 0:00:13.1]} 19... Qf7 {[%clk
0:00:35.6]} 20. d3 {[%clk 0:00:10]} 20... Bxf3 {[%clk 0:00:31.4]} 21. exf3
{[%clk 0:00:10.9]} 21... Rfd8 {[%clk 0:00:30.6]} 22. Bf5 {[%clk 0:00:09.9]}
22... g6 {[%clk 0:00:29.8]} 23. Be4 {[%clk 0:00:09.9]} 23... Ne6 {[%clk
0:00:26.7]} 24. Rxc6 {[%clk 0:00:04.3]} 24... bxc6 {[%clk 0:00:25.8]} 25. Rxc6
{[%clk 0:00:04.9]} 25... Rac8 {[%clk 0:00:26.2]} 26. Rxc8 {[%clk 0:00:04.3]}
26... Rxc8 {[%clk 0:00:27.1]} 27. f4 {[%clk 0:00:04.7]} 27... Rb8 {[%clk
0:00:25.4]} 28. Bc3 {[%clk 0:00:04.1]} 28... exf4 {[%clk 0:00:15.1]} 29. Bxf6+
{[%clk 0:00:03.6]} 29... Kg8 {[%clk 0:00:15.6]} 30. Bd5 {[%clk 0:00:03.3]} 30...
a4 {[%clk 0:00:13.6]} 31. Be5 {[%clk 0:00:01.3]} 31... Rb1+ {[%clk 0:00:13.2]}
0-1

[Event "Early-Titled-Tuesday-Blitz-October-24-2023"]
[Site "Chess.com"]
[Date "2023.10.24"]
[Round "2"]
[White "HajiyevKanan"]
[Black "WhiteKnight2612"]
[Result "0-1"]
[WhiteElo "2558"]
[BlackElo "2821"]
[TimeControl "180+1"]
[EndTime "8:16:48 PDT"]
[Termination "WhiteKnight2612 won on time"]

1. d4 {[%clk 0:03:00.9]} 1... e6 {[%clk 0:02:57.8]} 2. Nf3 {[%clk 0:03:01.8]}
2... d5 {[%clk 0:02:57.8]} 3. c4 {[%clk 0:03:00.8]} 3... c5 {[%clk 0:02:58.7]}
4. cxd5 {[%clk 0:03:01.7]} 4... exd5 {[%clk 0:02:58.7]} 5. Nc3 {[%clk
0:03:01.8]} 5... Nc6 {[%clk 0:02:57.4]} 6. g3 {[%clk 0:03:00.6]} 6... Nf6 {[%clk
0:02:52.5]} 7. Bg2 {[%clk 0:03:00.2]} 7... c4 {[%clk 0:02:52.2]} 8. O-O {[%clk
0:02:54.8]} 8... Bb4 {[%clk 0:02:52.6]} 9. Bg5 {[%clk 0:02:14.2]} 9... Bxc3
{[%clk 0:02:50]} 10. bxc3 {[%clk 0:02:15.1]} 10... O-O {[%clk 0:02:50.1]} 11. e4
{[%clk 0:02:08.9]} 11... dxe4 {[%clk 0:02:47.2]} 12. Nd2 {[%clk 0:02:08.5]}
12... h6 {[%clk 0:02:44.2]} 13. Bxf6 {[%clk 0:01:52.3]} 13... Qxf6 {[%clk
0:02:45.1]} 14. Nxe4 {[%clk 0:01:45.2]} 14... Qg6 {[%clk 0:02:45.5]} 15. Re1
{[%clk 0:01:27.6]} 15... Bf5 {[%clk 0:02:38.7]} 16. Qa4 {[%clk 0:01:12.6]} 16...
Rac8 {[%clk 0:02:30.2]} 17. Nc5 {[%clk 0:01:05.2]} 17... b6 {[%clk 0:02:28.1]}
18. Ne4 {[%clk 0:01:02.9]} 18... Na5 {[%clk 0:02:15.1]} 19. h3 {[%clk
0:00:56.4]} 19... Rfd8 {[%clk 0:01:58.4]} 20. Re3 {[%clk 0:00:53.7]} 20... Bd7
{[%clk 0:01:55.1]} 21. Qc2 {[%clk 0:00:47.1]} 21... Bc6 {[%clk 0:01:55.5]} 22.
Rae1 {[%clk 0:00:44.7]} 22... Re8 {[%clk 0:01:50.9]} 23. Qe2 {[%clk 0:00:32.2]}
23... Red8 {[%clk 0:01:46.2]} 24. Kh2 {[%clk 0:00:31.4]} 24... Rf8 {[%clk
0:01:42.4]} 25. Qg4 {[%clk 0:00:27.2]} 25... Qxg4 {[%clk 0:01:29.2]} 26. hxg4
{[%clk 0:00:28.1]} 26... Rfd8 {[%clk 0:01:29.7]} 27. f4 {[%clk 0:00:25.8]} 27...
Bd5 {[%clk 0:01:27.1]} 28. g5 {[%clk 0:00:20.3]} 28... hxg5 {[%clk 0:01:26.6]}
29. Nxg5 {[%clk 0:00:20.5]} 29... Bxg2 {[%clk 0:01:11.5]} 30. Kxg2 {[%clk
0:00:21.4]} 30... f6 {[%clk 0:01:12]} 31. Ne4 {[%clk 0:00:16.3]} 31... Nc6
{[%clk 0:01:11.3]} 32. a4 {[%clk 0:00:12.4]} 32... Rd7 {[%clk 0:01:08.7]} 33. g4
{[%clk 0:00:09.6]} 33... Kf7 {[%clk 0:01:04.1]} 34. f5 {[%clk 0:00:07.5]} 34...
Ne7 {[%clk 0:01:03.8]} 35. Kf3 {[%clk 0:00:06.2]} 35... Nd5 {[%clk 0:01:03.8]}
36. R3e2 {[%clk 0:00:01.8]} 36... Rh8 {[%clk 0:01:04.5]} 37. Kg3 {[%clk
0:00:02.1]} 37... a6 {[%clk 0:01:01]} 38. Rc1 {[%clk 0:00:02.5]} 38... b5 {[%clk
0:01:00.9]} 39. axb5 {[%clk 0:00:03.4]} 39... axb5 {[%clk 0:01:01.5]} 40. Nc5
{[%clk 0:00:04.2]} 40... Ra7 {[%clk 0:01:01.7]} 41. Rec2 {[%clk 0:00:04]} 41...
Ra3 {[%clk 0:01:01.6]} 42. Ne4 {[%clk 0:00:04.2]} 42... Ke7 {[%clk 0:00:59.6]}
43. Nc5 {[%clk 0:00:04.2]} 43... b4 {[%clk 0:00:57.4]} 44. Kf3 {[%clk
0:00:02.8]} 44... Rxc3+ {[%clk 0:00:52.1]} 45. Rxc3 {[%clk 0:00:02.6]} 45...
Rh3+ {[%clk 0:00:52.5]} 46. Kg2 {[%clk 0:00:02.6]} 46... Rxc3 {[%clk 0:00:53.2]}
47. Rxc3 {[%clk 0:00:02.9]} 47... Nxc3 {[%clk 0:00:53.9]} 48. Kf3 {[%clk
0:00:03.1]} 48... b3 {[%clk 0:00:54]} 0-1

[Event "Early-Titled-Tuesday-Blitz-October-24-2023"]
[Site "Chess.com"]
[Date "2023.10.24"]
[Round "2"]
[White "FGHSMN"]
[Black "vladgoncharov"]
[Result "1-0"]
[WhiteElo "2904"]
[BlackElo "2582"]
[TimeControl "180+1"]
[EndTime "8:16:49 PDT"]
[Termination "FGHSMN won by resignation"]

1. c4 {[%clk 0:02:59.9]} 1... Nf6 {[%clk 0:02:56.1]} 2. Nc3 {[%clk 0:02:59.2]}
2... e6 {[%clk 0:02:52.3]} 3. d4 {[%clk 0:02:56.3]} 3... Bb4 {[%clk 0:02:51.2]}
4. e3 {[%clk 0:02:56.4]} 4... O-O {[%clk 0:02:49.5]} 5. Bd2 {[%clk 0:02:57]}
5... c5 {[%clk 0:02:45.4]} 6. a3 {[%clk 0:02:55.6]} 6... Bxc3 {[%clk 0:02:42.3]}
7. Bxc3 {[%clk 0:02:56.5]} 7... Ne4 {[%clk 0:02:42.2]} 8. Ne2 {[%clk 0:02:57.2]}
8... Qh4 {[%clk 0:02:18.9]} 9. g3 {[%clk 0:02:53.7]} 9... Qf6 {[%clk 0:02:14]}
10. f4 {[%clk 0:02:54.4]} 10... Nxc3 {[%clk 0:02:09.4]} 11. Nxc3 {[%clk
0:02:53.5]} 11... cxd4 {[%clk 0:02:06.8]} 12. Qxd4 {[%clk 0:02:53.3]} 12... Qxd4
{[%clk 0:01:26.6]} 13. exd4 {[%clk 0:02:54.2]} 13... Nc6 {[%clk 0:01:26.3]} 14.
O-O-O {[%clk 0:02:53.5]} 14... b6 {[%clk 0:01:15.1]} 15. Bg2 {[%clk 0:02:52.9]}
15... Bb7 {[%clk 0:01:14.9]} 16. b3 {[%clk 0:02:49.1]} 16... Na5 {[%clk
0:01:08.7]} 17. Bxb7 {[%clk 0:02:46.9]} 17... Nxb7 {[%clk 0:01:08.9]} 18. d5
{[%clk 0:02:43.5]} 18... Rfc8 {[%clk 0:01:02.3]} 19. Rhe1 {[%clk 0:02:35.4]}
19... Kf8 {[%clk 0:01:01.6]} 20. Kb2 {[%clk 0:02:33.6]} 20... Nc5 {[%clk
0:00:52.9]} 21. g4 {[%clk 0:02:27.3]} 21... Rab8 {[%clk 0:00:49.5]} 22. Nb5
{[%clk 0:02:22.4]} 22... a6 {[%clk 0:00:46]} 23. Nd6 {[%clk 0:02:21.8]} 23...
Rc7 {[%clk 0:00:45.6]} 24. f5 {[%clk 0:02:09.8]} 24... b5 {[%clk 0:00:41.7]} 25.
cxb5 {[%clk 0:02:07.3]} 25... axb5 {[%clk 0:00:41.6]} 26. Rf1 {[%clk 0:01:43.8]}
26... f6 {[%clk 0:00:36.3]} 27. g5 {[%clk 0:01:40.7]} 27... e5 {[%clk
0:00:25.9]} 28. g6 {[%clk 0:01:33.2]} 28... Ke7 {[%clk 0:00:21.1]} 29. Nxb5
{[%clk 0:01:29.3]} 29... Rcb7 {[%clk 0:00:19.3]} 30. a4 {[%clk 0:01:28.8]} 30...
hxg6 {[%clk 0:00:16.8]} 31. fxg6 {[%clk 0:01:29.5]} 31... Ne4 {[%clk 0:00:16.8]}
32. d6+ {[%clk 0:01:27.3]} 32... Ke6 {[%clk 0:00:16]} 33. Nc7+ {[%clk
0:01:27.2]} 33... Rxc7 {[%clk 0:00:15]} 34. dxc7 {[%clk 0:01:27.9]} 34... Rc8
{[%clk 0:00:15.3]} 35. Rc1 {[%clk 0:01:27.8]} 35... d5 {[%clk 0:00:15.3]} 36. a5
{[%clk 0:01:27.8]} 36... Kd6 {[%clk 0:00:15.3]} 37. a6 {[%clk 0:01:28.1]} 37...
Nc5 {[%clk 0:00:15.6]} 38. a7 {[%clk 0:01:26.6]} 38... Nd3+ {[%clk 0:00:14.8]}
39. Kb1 {[%clk 0:01:23.4]} 39... Nxc1 {[%clk 0:00:15]} 40. Rxc1 {[%clk
0:01:24.3]} 40... Kd7 {[%clk 0:00:15.5]} 41. h4 {[%clk 0:01:14.9]} 41... e4
{[%clk 0:00:15.7]} 42. h5 {[%clk 0:01:13.6]} 42... e3 {[%clk 0:00:15.8]} 43.
a8=Q {[%clk 0:00:59.3]} 43... Rxa8 {[%clk 0:00:15.3]} 44. c8=Q+ {[%clk
0:00:59.4]} 44... Rxc8 {[%clk 0:00:15.5]} 45. Rxc8 {[%clk 0:00:59.2]} 45... d4
{[%clk 0:00:13]} 46. Kc2 {[%clk 0:00:55.7]} 46... Kxc8 {[%clk 0:00:09.6]} 47. h6
{[%clk 0:00:56]} 1-0

[Event "Early-Titled-Tuesday-Blitz-October-24-2023"]
[Site "Chess.com"]
[Date "2023.10.24"]
[Round "2"]
[White "AvitalBor"]
[Black "Aleksandar-Topalov"]
[Result "1-0"]
[WhiteElo "2840"]
[BlackElo "2399"]
[TimeControl "180+1"]
[EndTime "8:16:50 PDT"]
[Termination "AvitalBor won by checkmate"]

1. e4 {[%clk 0:03:00.9]} 1... e6 {[%clk 0:02:55.3]} 2. Qe2 {[%clk 0:02:58.8]}
2... c5 {[%clk 0:02:42.4]} 3. g3 {[%clk 0:02:57.6]} 3... Nc6 {[%clk 0:02:35]} 4.
Bg2 {[%clk 0:02:57.2]} 4... Be7 {[%clk 0:02:30.5]} 5. Nf3 {[%clk 0:02:56.4]}
5... d5 {[%clk 0:02:30.5]} 6. exd5 {[%clk 0:02:56.3]} 6... exd5 {[%clk
0:02:30.1]} 7. O-O {[%clk 0:02:55.4]} 7... Nf6 {[%clk 0:02:30.1]} 8. d4 {[%clk
0:02:46]} 8... O-O {[%clk 0:02:27]} 9. dxc5 {[%clk 0:02:45.7]} 9... Bxc5 {[%clk
0:02:25.8]} 10. Bg5 {[%clk 0:02:45.8]} 10... h6 {[%clk 0:02:24.9]} 11. Bh4
{[%clk 0:02:38.5]} 11... Re8 {[%clk 0:01:52.3]} 12. Qd2 {[%clk 0:02:34.8]} 12...
Ne4 {[%clk 0:01:06.1]} 13. Bxd8 {[%clk 0:02:34]} 13... Nxd2 {[%clk 0:01:06.1]}
14. Nfxd2 {[%clk 0:02:34.9]} 14... Rxd8 {[%clk 0:01:05.3]} 15. Nb3 {[%clk
0:02:35.6]} 15... Bb6 {[%clk 0:01:04.8]} 16. Nc3 {[%clk 0:02:35.9]} 16... Be6
{[%clk 0:00:59.1]} 17. Rad1 {[%clk 0:02:32.9]} 17... d4 {[%clk 0:00:54.9]} 18.
Ne2 {[%clk 0:02:25.1]} 18... Rac8 {[%clk 0:00:49.4]} 19. Bxc6 {[%clk 0:02:21.5]}
19... Rxc6 {[%clk 0:00:48.6]} 20. Nexd4 {[%clk 0:02:21.2]} 20... Bxd4 {[%clk
0:00:46.3]} 21. Rxd4 {[%clk 0:02:07.8]} 21... Rdc8 {[%clk 0:00:20.6]} 22. c3
{[%clk 0:02:04.1]} 22... b6 {[%clk 0:00:20.9]} 23. Rfd1 {[%clk 0:01:55.8]} 23...
a5 {[%clk 0:00:20.8]} 24. Nc1 {[%clk 0:01:54.9]} 24... b5 {[%clk 0:00:16.8]} 25.
a3 {[%clk 0:01:38.5]} 25... Rc4 {[%clk 0:00:14.6]} 26. f3 {[%clk 0:01:31.2]}
26... Kh7 {[%clk 0:00:14.3]} 27. Kf2 {[%clk 0:01:30.7]} 27... b4 {[%clk
0:00:13.7]} 28. axb4 {[%clk 0:01:30.4]} 28... axb4 {[%clk 0:00:14.2]} 29. Rxc4
{[%clk 0:01:29.4]} 29... Rxc4 {[%clk 0:00:13]} 30. Ne2 {[%clk 0:01:28.7]} 30...
bxc3 {[%clk 0:00:12.2]} 31. bxc3 {[%clk 0:01:25.5]} 31... Rc5 {[%clk 0:00:11.8]}
32. Rc1 {[%clk 0:01:12.7]} 32... Bc4 {[%clk 0:00:11.8]} 33. Nd4 {[%clk
0:01:09.1]} 33... Ra5 {[%clk 0:00:12]} 34. Rc2 {[%clk 0:01:09.5]} 34... Ra1
{[%clk 0:00:11.6]} 35. g4 {[%clk 0:01:08.5]} 35... g5 {[%clk 0:00:11.6]} 36. Nc6
{[%clk 0:00:54.2]} 36... Rf1+ {[%clk 0:00:11.5]} 37. Kg2 {[%clk 0:00:52.6]}
37... Re1 {[%clk 0:00:10]} 38. Nd4 {[%clk 0:00:36.5]} 38... Bd3 {[%clk
0:00:09.7]} 39. Rd2 {[%clk 0:00:33.7]} 39... Bc4 {[%clk 0:00:09.8]} 40. Nf5
{[%clk 0:00:33.2]} 40... Kg6 {[%clk 0:00:09.1]} 41. Rd6+ {[%clk 0:00:32.4]}
41... f6 {[%clk 0:00:07.9]} 42. Rd7 {[%clk 0:00:31.6]} 42... Re2+ {[%clk
0:00:08]} 43. Kg3 {[%clk 0:00:30.1]} 43... h5 {[%clk 0:00:08.1]} 44. Rg7# {[%clk
0:00:29.8]} 1-0

[Event "Early-Titled-Tuesday-Blitz-October-24-2023"]
[Site "Chess.com"]
[Date "2023.10.24"]
[Round "2"]
[White "Casper"]
[Black "attack2mateU"]
[Result "0-1"]
[WhiteElo "2434"]
[BlackElo "2724"]
[TimeControl "180+1"]
[EndTime "8:16:51 PDT"]
[Termination "attack2mateU won by checkmate"]

1. e4 {[%clk 0:03:00.9]} 1... c5 {[%clk 0:03:00]} 2. d4 {[%clk 0:03:01.3]} 2...
cxd4 {[%clk 0:03:00.9]} 3. Qxd4 {[%clk 0:03:01.7]} 3... Nc6 {[%clk 0:03:00.9]}
4. Qe3 {[%clk 0:03:02.4]} 4... Nf6 {[%clk 0:02:57.2]} 5. Nc3 {[%clk 0:03:02.8]}
5... e6 {[%clk 0:02:52.9]} 6. Bd2 {[%clk 0:03:02.9]} 6... Be7 {[%clk 0:02:33.2]}
7. O-O-O {[%clk 0:03:03]} 7... d5 {[%clk 0:02:28]} 8. exd5 {[%clk 0:03:02.5]}
8... exd5 {[%clk 0:02:28.7]} 9. Qg3 {[%clk 0:02:54.8]} 9... d4 {[%clk
0:02:11.8]} 10. Nb5 {[%clk 0:02:22]} 10... Ne4 {[%clk 0:01:40.1]} 11. Qxg7
{[%clk 0:02:02.7]} 11... Bf6 {[%clk 0:01:39.8]} 12. Qh6 {[%clk 0:02:01.8]} 12...
Nxd2 {[%clk 0:01:23.1]} 13. Qxd2 {[%clk 0:01:21]} 13... a6 {[%clk 0:01:22.5]}
14. Qe1+ {[%clk 0:01:01.9]} 14... Kf8 {[%clk 0:00:38.8]} 15. Nc3 {[%clk
0:00:58.3]} 15... Bf5 {[%clk 0:00:35.2]} 16. Bc4 {[%clk 0:00:48.4]} 16... Rc8
{[%clk 0:00:30.3]} 17. Nd5 {[%clk 0:00:26.3]} 17... Na5 {[%clk 0:00:22.3]} 18.
Qb4+ {[%clk 0:00:18]} 18... Kg7 {[%clk 0:00:22.8]} 19. Nxf6 {[%clk 0:00:18]}
19... Rxc4 {[%clk 0:00:20.8]} 20. Nh5+ {[%clk 0:00:15.9]} 20... Kh6 {[%clk
0:00:15]} 21. Qd2+ {[%clk 0:00:12.3]} 21... Kxh5 {[%clk 0:00:15.5]} 22. c3
{[%clk 0:00:08.7]} 22... Qg5 {[%clk 0:00:07]} 23. f4 {[%clk 0:00:08.2]} 23...
dxc3 {[%clk 0:00:04.6]} 24. Qe2+ {[%clk 0:00:02.8]} 24... Qg4 {[%clk 0:00:04.6]}
25. Nf3 {[%clk 0:00:02.8]} 25... cxb2+ {[%clk 0:00:04.7]} 26. Kxb2 {[%clk
0:00:02.9]} 26... Rc2+ {[%clk 0:00:03.6]} 27. Qxc2 {[%clk 0:00:03.6]} 27... Bxc2
{[%clk 0:00:04.5]} 28. Kxc2 {[%clk 0:00:04]} 28... Rc8+ {[%clk 0:00:03.9]} 29.
Kb2 {[%clk 0:00:04]} 29... Nc4+ {[%clk 0:00:04.1]} 30. Ka1 {[%clk 0:00:03.5]}
30... Qg7+ {[%clk 0:00:04.3]} 31. Nd4 {[%clk 0:00:03.7]} 31... Rd8 {[%clk
0:00:04.8]} 32. h3 {[%clk 0:00:03.3]} 32... Rxd4 {[%clk 0:00:05.1]} 33. g3
{[%clk 0:00:04.2]} 33... Rxd1# {[%clk 0:00:05.1]} 0-1

[Event "Early-Titled-Tuesday-Blitz-October-24-2023"]
[Site "Chess.com"]
[Date "2023.10.24"]
[Round "2"]
[White "Mikhail_Golubev"]
[Black "I_am_Javi"]
[Result "0-1"]
[WhiteElo "2533"]
[BlackElo "2798"]
[TimeControl "180+1"]
[EndTime "8:16:53 PDT"]
[Termination "I_am_Javi won by checkmate"]

1. e4 {[%clk 0:03:00.9]} 1... e5 {[%clk 0:02:58.2]} 2. Nf3 {[%clk 0:03:00.9]}
2... Nc6 {[%clk 0:02:58.9]} 3. Bc4 {[%clk 0:03:00.9]} 3... g6 {[%clk 0:02:59]}
4. d4 {[%clk 0:02:57.6]} 4... exd4 {[%clk 0:02:59.9]} 5. Bg5 {[%clk 0:02:41.3]}
5... Be7 {[%clk 0:02:56.8]} 6. h4 {[%clk 0:02:32.1]} 6... h6 {[%clk 0:02:51.7]}
7. Bf4 {[%clk 0:02:22.9]} 7... Nf6 {[%clk 0:02:46.9]} 8. e5 {[%clk 0:02:17.7]}
8... Nh5 {[%clk 0:02:47]} 9. Bh2 {[%clk 0:02:16.9]} 9... d5 {[%clk 0:02:47.5]}
10. Bb5 {[%clk 0:02:07]} 10... Bg4 {[%clk 0:02:39.7]} 11. Bxc6+ {[%clk
0:01:56.2]} 11... bxc6 {[%clk 0:02:39.6]} 12. Qxd4 {[%clk 0:01:54.2]} 12... Bxf3
{[%clk 0:02:39.9]} 13. gxf3 {[%clk 0:01:54.4]} 13... O-O {[%clk 0:02:39]} 14.
Nc3 {[%clk 0:01:42.6]} 14... Ng7 {[%clk 0:02:37.9]} 15. h5 {[%clk 0:01:36.1]}
15... Nxh5 {[%clk 0:02:32.7]} 16. O-O-O {[%clk 0:01:34.5]} 16... Ng7 {[%clk
0:02:32.5]} 17. Qa4 {[%clk 0:01:20.2]} 17... Qe8 {[%clk 0:02:26.2]} 18. Bf4
{[%clk 0:01:16.9]} 18... h5 {[%clk 0:02:24.4]} 19. Rdg1 {[%clk 0:01:15.2]} 19...
Rb8 {[%clk 0:02:23.5]} 20. Qxa7 {[%clk 0:01:07.6]} 20... Qd7 {[%clk 0:00:55.4]}
21. Qe3 {[%clk 0:00:40.8]} 21... d4 {[%clk 0:00:55.4]} 22. Qd3 {[%clk 0:00:41]}
22... c5 {[%clk 0:00:48.3]} 23. Bh6 {[%clk 0:00:34.1]} 23... Qe6 {[%clk
0:00:43.7]} 24. Ne4 {[%clk 0:00:29.9]} 24... Qxa2 {[%clk 0:00:42.8]} 25. Nf6+
{[%clk 0:00:27.9]} 25... Bxf6 {[%clk 0:00:43]} 26. exf6 {[%clk 0:00:28.4]} 26...
c4 {[%clk 0:00:33.8]} 27. Rxg6 {[%clk 0:00:26.5]} 27... Qxb2+ {[%clk 0:00:17.2]}
28. Kd2 {[%clk 0:00:23.7]} 28... cxd3 {[%clk 0:00:18.1]} 29. Rxg7+ {[%clk
0:00:22.9]} 29... Kh8 {[%clk 0:00:18.8]} 30. Kxd3 {[%clk 0:00:15]} 30... Qc3+
{[%clk 0:00:18.3]} 31. Ke4 {[%clk 0:00:14]} 31... Qxc2+ {[%clk 0:00:18.5]} 32.
Kf4 {[%clk 0:00:13.6]} 32... Rb5 {[%clk 0:00:18.9]} 33. Bg5 {[%clk 0:00:10.2]}
33... Qf5+ {[%clk 0:00:18.6]} 34. Kg3 {[%clk 0:00:10.2]} 34... Qxg5+ {[%clk
0:00:19.2]} 35. Rxg5 {[%clk 0:00:10.4]} 35... Rxg5+ {[%clk 0:00:20.1]} 36. Kf4
{[%clk 0:00:10.7]} 36... Rd5 {[%clk 0:00:20.3]} 37. Ke4 {[%clk 0:00:10.8]} 37...
Rfd8 {[%clk 0:00:20]} 38. f4 {[%clk 0:00:11.4]} 38... c5 {[%clk 0:00:19.3]} 39.
f5 {[%clk 0:00:11.5]} 39... d3 {[%clk 0:00:18.7]} 40. Rxh5+ {[%clk 0:00:11.6]}
40... Kg8 {[%clk 0:00:19.3]} 41. Rg5+ {[%clk 0:00:12.1]} 41... Kf8 {[%clk
0:00:19.5]} 42. Rh5 {[%clk 0:00:12.8]} 42... Rd4+ {[%clk 0:00:19.6]} 43. Ke5
{[%clk 0:00:12]} 43... R8d5# {[%clk 0:00:19.3]} 0-1